Cogmind - Beta 16.1 @@@ ROGUE MODE // 2026.03.25 @ 19:49:52 Player: Tinker Result: Self-destructed Performance ------------- Evolutions (1) 500 Regions Visited (2) 400 Robots Destroyed (17) 85 Value Destroyed (316) 316 Prototype IDs (0) 0 Alien Tech Used (0) 0 Bonus (0) 0 TOTAL SCORE: 1301 Bonus ------- None Cogmind --------- Core Integrity 400/400 Matter 271/300 Energy 125/125 System Corruption 0% Temperature Cool (0) Movement Walking (120) Location -9/Materials Parts ------- > --- POWER (1) -------- Light Ion Engine > --- PROPULSION (2) --- Aluminum Leg Aluminum Leg > --- UTILITY (3) ------ Medium Storage Unit > --- WEAPON (3) ------- Heavy Hammer > --- INVENTORY (10) --- Light Treads Weight Redist. System Improved Terrain Scanner Seismic Detector Assault Rifle Light Cannon Light Cannon Peak State ------------ > --- POWER ------------ Light Ion Engine > --- PROPULSION ------- Flight Unit Flight Unit > --- UTILITY ---------- Medium Storage Unit Weight Redist. System > --- WEAPON ----------- Assault Rifle Heavy Hammer > --- INVENTORY -------- Ion Engine Light Treads Light Treads Flight Unit Weight Redist. System Improved Terrain Scanner Seismic Detector [Rating: 10] Favorites ----------- Power Light Ion Engine Engine Light Ion Engine Propulsion Aluminum Leg Treads Light Treads Leg Aluminum Leg Flight Unit Flight Unit Utility Medium Storage Unit Device Weight Redist. System Storage Medium Storage Unit Weapon Heavy Hammer Ballistic Gun Assault Rifle Impact Weapon Heavy Hammer Build | -11 -10 -9 ------- Run | Yrd Mat Mat Slots Evolved 2 | . . 2 Power . | . . . Propulsion . | . . . Utility 1 | . . 1 Weapon 1 | . . 1 Parts Attached 20 | 6 14 . Power 3 | 1 2 . Engine 3 | 1 2 . Core . | . . . Reactor . | . . . Propulsion 10 | 2 8 . Treads 2 | 2 . . Leg 2 | . 2 . Wheel . | . . . Hover . | . . . Flight 6 | . 6 . Utility 5 | 2 3 . Device 2 | 1 1 . Storage 3 | 1 2 . Processor . | . . . Hackware . | . . . Protection . | . . . Artifact . | . . . Weapon 2 | 1 1 . Energy Gun . | . . . Energy Cannon . | . . . Ballistic Gun 1 | 1 . . Ballistic Cannon . | . . . Launcher . | . . . Special Weapon . | . . . Impact Weapon 1 | . 1 . Slashing Weapon . | . . . Piercing Weapon . | . . . Special Melee Weapon . | . . . Unidentified Prototypes . | . . . Corrupted Parts 2 | . 2 . System Corruption 18 | . 18 . Parts Lost 2 | . 2 . Power 1 | . 1 . Propulsion . | . . . Utility 1 | . 1 . Weapon . | . . . Highest Loss Streak 1 | . 1 . To Critical Strikes . | . . . Average Backups 7 | 4 7 7 Power . | . . . Propulsion 2 | 1 2 1 Utility 2 | . 2 3 Weapon 1 | 1 1 3 Tool/Special . | . . . Unused Backups 10 | . 8 2 Power . | . . . Propulsion 6 | . 6 . Utility 2 | . . 2 Weapon 2 | . 2 . Tool/Special . | . . . Average Slot Usage (%) 70 | . 74 55 Engine 11 | . 12 11 Treads 4 | . 5 . Leg 11 | . 8 22 Flight 10 | . 13 . Device 6 | . 8 . Storage 13 | . 13 11 Ballistic Gun 2 | . 3 . Impact Weapon 8 | . 7 11 Peak Build Rating 10 | 6 10 7 Average Rating 6 | 4 7 7 On Entrance 4 | . 6 7 Avg Prop Armor Cover (%) 8 | . 8 . Naked Turns . | . . . Heaviest Build 18 | 13 18 16 Greatest Support 40 | 40 40 20 Greatest Overweight (x) 4 | 1 4 . Average Overweight (x) . | . . . Largest Inventory Capacity 10 | 8 10 10 Average Capacity 9 | 7 9 10 Most Carried 10 | 6 10 7 Average Carried 7 | 4 7 7 Final Capacity 10 | 8 10 10 Final Carried 7 | 6 7 7 Class Distribution -------------------- 100% | Mutant Dominant Class ---------------- Mutant | -10/Materials Mutant | -9/Materials Resources | -11 -10 -9 ----------- Run | Yrd Mat Mat Matter Collected 558 | 222 336 . Remotely . | . . . Salvage Created 432 | 45 387 . Parts 27 | 6 21 . Haulers Intercepted 1 | . 1 . Recyclers Shooed . | . . . Parts Field Recycled . | . . . Retrieved Matter . | . . . Parts Self-Destructed . | . . . Prevented . | . . . Parts Restored . | . . . Kills | -11 -10 -9 ------- Run | Yrd Mat Mat Combat Hostiles Destroyed 12 | . 12 . Melee 1 | . 1 . Guns 6 | . 6 . Classes Destroyed 5 | 1 4 . Tunneler 3 | 3 . . Hauler 1 | . 1 . Watcher 1 | . 1 . Swarmer 6 | . 6 . Grunt 6 | . 6 . Best Kill Streak 5 | 2 5 . Combat Bots Only 5 | . 5 . Max Kills in Single Turn 1 | 1 1 . Gunslinging . | . . . Exploded . | . . . Melee 1 | . 1 . Uniques/NPCs Destroyed . | . . . Combat | -11 -10 -9 -------- Run | Yrd Mat Mat Hostile Shots Fired 74 | . 73 1 Missed 23 | . 23 . Hits 51 | . 50 1 Projectile 51 | . 50 1 Critical Strikes 1 | . 1 . Damage Taken 553 | . 541 12 Core 196 | . 196 . Absorbed by Shields . | . . . Core Remaining (%) 60 | 100 21 . Volleys Fired 26 | 3 23 . Largest 1 | 1 1 . Hottest 20 | 20 20 . Shots Fired 26 | 3 23 . Gun 26 | 3 23 . Cannon . | . . . Launcher . | . . . Special . | . . . Kinetic 26 | 3 23 . Thermal . | . . . Explosive . | . . . Electromagnetic . | . . . Robot Hit Streak 5 | 3 5 . Robot Miss Streak 3 | . 3 . Penetration Max . | . . . Secondary Targets . | . . . Shots Hit Robots 31 | 3 28 . Core Hits 10 | 3 7 . Critical Kills . | . . . Critical Parts Destroyed 5 | . 5 . Critical Strikes 5 | . 5 . Smash 5 | . 5 . Melee Attacks 23 | . 23 . Impact 23 | . 23 . Slashing . | . . . Piercing . | . . . Sneak Attacks 1 | . 1 . Combat Hostiles . | . . . Follow-up Attacks . | . . . Damage Inflicted 923 | 38 885 . Guns 183 | 38 145 . Cannons . | . . . Explosions . | . . . Melee 740 | . 740 . Ramming . | . . . Kinetic 183 | 38 145 . Thermal . | . . . Explosive . | . . . Electromagnetic . | . . . Impact 740 | . 740 . Slashing . | . . . Piercing . | . . . Highest Corruption 18 | . 18 . Average Corruption 17 | . 17 . Corruption Purged . | . . . Corruption Blocked . | . . . Effects 7 | . 7 . Message Errors 3 | . 3 . Matter Fused 2 | . 2 . Data Loss (minor) 1 | . 1 . Data Loss (major) 1 | . 1 . Overload Shots . | . . . Overflow Damage 350 | . 350 . Projectiles . | . . . Explosions . | . . . Melee 350 | . 350 . Knockbacks . | . . . Impact . | . . . Kinetic . | . . . Secondary . | . . . Self-Inflicted Damage . | . . . Shots . | . . . Rammed . | . . . Targets Rammed . | . . . Kicked . | . . . Crushed . | . . . Highest Temperature 10 | . 10 . Average Temperature 4 | . 4 . Received Heat Transfer 240 | . 234 6 Siege Activations . | . . . Martial Activations . | . . . Shielding Activations . | . . . Robots Disrupted . | . . . Combat Hostiles . | . . . Robots Corrupted 5 | . 5 . Combat Hostiles 5 | . 5 . Parts Fried 6 | . 6 . Impact Corruptions 9 | . 9 . Robots Melted . | . . . Combat Hostiles . | . . . Parts Melted . | . . . Heat Transferred . | . . . Parts Sabotaged . | . . . Parts Stolen . | . . . Parts Stripped . | . . . Power Chain Reactions . | . . . Alert | -11 -10 -9 ------- Run | Yrd Mat Mat Maximum Alert Level 1 | . 1 . Low Security (%) 65 | 100 46 100 Level 1 34 | . 53 . Level 2 . | . . . Level 3 . | . . . Level 4 . | . . . Level 5 . | . . . High Security . | . . . Max Security . | . . . Peak Influence 285 | 10 285 104 Initial 104 | . . 104 Average 116 | . 161 82 Influence Increases 439 | 15 424 . Destroy 0b10 Robot/C 240 | . 240 . Destroy 0b10 Robot/NC 25 | 15 10 . Destroy Leader 34 | . 34 . Successful Hack 5 | . 5 . Lose Combat Pursuer 135 | . 135 . Influence Decreases 385 | 15 175 195 Entered New Map 145 | . . 145 Time Decay 220 | 15 155 50 Lost Part 20 | . 20 . Squads Dispatched 1 | . . 1 Investigation 1 | . . 1 Extermination . | . . . Reinforcement . | . . . Assault . | . . . Garrison . | . . . Intercept . | . . . Searches Triggered . | . . . Construction Impeded . | . . . Haulers Reinforced . | . . . Active Scanning Responses . | . . . Cargo Convoy Interrupts . | . . . Stealth | -11 -10 -9 --------- Run | Yrd Mat Mat Distress Signals 1 | . . 1 Communications Jammed . | . . . Distress Signals . | . . . Times Spotted 28 | . 26 2 Peak Tracking Total 7 | . 7 5 Tactical Retreats 5 | . 5 . Traps | -11 -10 -9 ------- Run | Yrd Mat Mat Traps Triggered . | . . . Indirectly . | . . . Trap Hack Attempts . | . . . Triggered . | . . . Disarmed . | . . . Reprogrammed . | . . . Reused . | . . . Traps Extracted . | . . . Installed . | . . . Triggered . | . . . Machines | -11 -10 -9 ---------- Run | Yrd Mat Mat Machines Disabled . | . . . Max in Single Turn . | . . . Machines Repaired . | . . . Machines Dismantled . | . . . Machines Sabotaged . | . . . Overloaded Fab Kills . | . . . Hacking | -11 -10 -9 --------- Run | Yrd Mat Mat Machines Accessed 2 | . 1 1 Terminals 2 | . 1 1 Fabricators . | . . . Repair Stations . | . . . Recycling Units . | . . . Scanalyzers . | . . . Garrison Access . | . . . Total Hacks 5 | . 1 4 Successful 1 | . 1 . Failed 4 | . . 4 Catastrophic . | . . . Database Lockouts . | . . . Manual 5 | . 1 4 Terminals 5 | . 1 4 Fabricators . | . . . Repair Stations . | . . . Recycling Units . | . . . Scanalyzers . | . . . Garrison Access . | . . . Terminal Hacks . | . . . Fabricator Hacks . | . . . Repair Station Hacks . | . . . Recycling Unit Hacks . | . . . Scanalyzer . | . . . Garrison Access Hacks . | . . . Unauthorized Hacks 1 | . 1 . Terminals 1 | . 1 . Botnet 1 | . 1 . Fabricators . | . . . Repair Stations . | . . . Recycling Units . | . . . Scanalyzers . | . . . Garrison Access . | . . . Data Cores Recovered . | . . . Used . | . . . Hacking Detections 2 | . 1 1 Full Trace Events 1 | . . 1 Feedback Events . | . . . Feedback Blocked . | . . . Robot Schematics Acquired . | . . . Robots Built . | . . . Authchips . | . . . Time . | . . . Total Robot Build Rating . | . . . Part Schematics Acquired . | . . . Parts Built . | . . . Authchips . | . . . Time . | . . . Total Part Build Rating . | . . . Part Studies Acquired . | . . . Parts Repaired . | . . . Time . | . . . Parts Recycled . | . . . Recycled Matter . | . . . Retrieved Matter . | . . . Retrieved Components . | . . . Parts Scanalyzed . | . . . Part Schematics Acquired . | . . . Parts Damaged . | . . . Bothacking | -11 -10 -9 ------------ Run | Yrd Mat Mat Used RIF Installer . | . . . Robots Hacked . | . . . Non-combat . | . . . Combat . | . . . Robot Hacks Applied . | . . . Relay Couplers Released . | . . . Fabnet Peak Effective % . | . . . Robots Rewired . | . . . Allies Hacked . | . . . Hacks Repelled . | . . . Allies | -11 -10 -9 -------- Run | Yrd Mat Mat Total Allies . | . . . Largest Group . | . . . Highest-Rated Group . | . . . Highest-Rated Ally . | . . . Total Orders . | . . . Ally Attacks . | . . . Total Damage . | . . . Kills . | . . . Allies Corrupted . | . . . Allies Melted . | . . . Intel | -11 -10 -9 ------- Run | Yrd Mat Mat Active Infowar (turns) 53 | 21 32 . Seismic 53 | 21 32 . Robot Analysis Total . | . . . Derelict Logs Recovered . | . . . Drone Launches . | . . . Drone Recoveries . | . . . Exploration | -11 -10 -9 ------------- Run | Yrd Mat Mat Turns Passed 608 | 122 384 102 Spaces Moved 378 | 69 262 47 Core 11 | 11 . . Treads 81 | 58 23 . Legs 125 | . 78 47 Wheels . | . . . Hover . | . . . Flight 161 | . 161 . Fastest Speed 37 | 50 37 120 Average Speed 93 | 144 75 120 Slowest Speed 380 | 160 380 120 Overloaded Moves . | . . . Propulsion Burnouts . | . . . Robots Hopped . | . . . Potential Cave-ins . | . . . Cave-ins Triggered . | . . . Exploration Rate (%) 21 | 3 52 10 Regions Visited 2 Branch Regions . Pre-discovered Areas . | . . . Known Exits Taken . | . . . Unknown Exits Taken 2 | 1 1 . Scrap Searched . | . . . Spaces Dug . | . . . Terrain Destroyed . | . . . Melee . | . . . Projectile . | . . . AOE . | . . . Terrain Rammed . | . . . Walls Destroyed . | . . . Machines Disabled . | . . . Actions | -11 -10 -9 --------- Run | Yrd Mat Mat Total 571 | 85 394 92 Wait 69 | 2 22 45 Move 376 | 68 261 47 Hop . | . . . Pick Up 21 | 6 15 . Fast Attach 8 | 6 2 . Attach 6 | . 6 . Detach 6 | . 6 . Swap 16 | . 16 . Drop 20 | . 20 . Fire 26 | 3 23 . Melee 23 | . 23 . Ram . | . . . Kick . | . . . Crush . | . . . Escape Stasis . | . . . Rewire . | . . . Trap . | . . . Miscellaneous . | . . . Route ------- -11/Scrapyard -10/Materials (discovered 2 exits: *Mat / [*Min]) -9/Materials History --------- Turn | Location | Event 7 | -11/Scrapyard | Discovered new exit (range 16) 123 | -11/Scrapyard | Entered Materials 229 | -10/Materials | Discovered new exit (range 7) 324 | -10/Materials | Build established: Mutant 327 | -10/Materials | Core integrity fell below 50% 386 | -10/Materials | System corruption reached 10% 481 | -10/Materials | Discovered new exit (range 11) 507 | -10/Materials | Entered another Materials area 507 | -9/Materials | Evolved 2 slots: Utility x1, Weapon x1 609 | -9/Materials | Self-destructed Last Messages --------------- 00454_ G-34 Mercenary system corrupted by crushing effect. 00455_ G-34 Mercenary system terminally corrupted. 00455_ Aluminum Leg fried. 00458_ Acquired 43 matter. 00461_ W-16 Scout destroyed. 00463_ Acquired 9 matter. 00465_ 22P:S8YIAI9EKEWMBXC DR2NEWCQL 00481_ EXIT=FOUND 00487_ System corrupted: Component data lost. 00490_ Acquired Lgt. Cannon. 00503_ System corrupted: Matter fused (-10). PARAMETERS=UTILITY+1,WEAPON+1 LOCATION=UNKNOWN GOAL=ESCAPE 00513_ Connecting with Terminal... 00513_ Current location identified: Materials 00513_ ALERT: Suspicious activity at Terminal M008. Dispatching Investigation squad. 00542_ K-01 Serf collects debris. 00606_ W-16 Scout sends out distress signal. Map ----- +----------------------------------------------------+ | ????????????????????????????????????????????????? | | ????????????????????????????????????????????????? | | ????????????????????????????????????????????????? | | ????????????????????????????????????????????????? | | ????????????????????????????????????????????????? | | ????????????????????????????????????????????????? | | ????????????????????????????????????????????????? | | ????????????????????????????????????????????????? | | ????????????????????????????????????????????????? | | ?????????????????#+??????#??????????????????????? | | ???????????????? #????# ????????????????????? | | ????????????????# ???? w #?????????????????? | | ????????????????# ???? #?????????????????? | | ????????????????# ""??" #?????????????????? | | ????????????????# """?" #?????????????????? | | ????????????????# """"" #?????????????????? | | ????????????????# #?????????????????? | | ????????????????# #?????????????????? | | ????????????????# """"" #?????????????????? | | ??????########### """"" #?????????????????? | | ??????# ## """"" #?????????????????? | | ??????# ## #???????????????????? | | ??????# ## #???????????????????? | | ??????# # #???????????????????? | | ??????# + +???????????????????? | | ??????# # #####@ #???????????????????? | | ??????# # #???# #???????????????????? | | ??????# # #???# #???????????????????? | | ??????# # #???# #???????????????????? | | ??????####+##### #???# #???????????????????? | | ?????????# #???# #???# #???????????????????? | | ?????????# #???# #???#### #???????????????????? | | ?????????# #???# #??????? #???????????????????? | | ?????????# #???# #??????? #???????????????????? | | ?????????# #???# #????????#???????????????????? | | #######??# #???# #????????????????????????????? | | # T?# #???# #????????????????????????????? | | # ! ?# #??## ##???????????????????????????? | | # # #### #???????????????????????????? | | # # #???????????????????????????? | | # + T #???????????????????????????? | | # """ # #???????????????????????????? | | # """ ###+## #???????????????????????????? | | ?? """??# ## ##???????????????????????????? | | ?? ??# ## #????????????????????????????? | | ???####???# ## #????????????????????????????? | | ??????????# ## #????????????????????????????? | | ??????????# ## #????????????????????????????? | | ??????????# ######????????????????????????????? | | ??????????# #?????????????????????????????????? | +----------------------------------------------------+ Best States ------------- Heat Dissipation 28 Energy Generation 10 Energy Capacity 250 Matter Stores 281 Matter Capacity 300 Sight Range 16 Terrain Scan Density 10 Additional Mass Support 6 Evasion (%) 62 Recoil Reduction 2 Item Schematics ----------------- None Robot Schematics ------------------ None Fabricated ------------ Nothing Repaired ---------- Nothing Studied --------- None Alien Tech Used ----------------- None Achievements -------------- None Challenges ------------ None Game ------ Seed MassControlThrower Manual? 0 Play Time 00:10:08 Cumulative 34.2 hours Start 2026.03.15 @ 17:00:24 End 2026.03.25 @ 19:49:52 Sessions 4 Manual Loads 0 Difficulty Rogue Special Mode None Game No. 60 Rogue 60 Adventurer 0 Explorer 0 Win Type - Total 0 Types 0/0/0/0/0/0/0/0/0/0 Lore% 13 Gallery% 30 Achievement% 21 Wizard Run 0 Options --------- Layout 0 ASCII 0 Keyboard 1 Movement Numpad Keybinds 0 Fullscreen 1 Font 18/SmallcapsGlow Map View 76x50 Zoom Use 0% Tactical HUD 1 Map Filters NONE Filters NONE Steam 1 RUN: 45f0d7d6-4d26-439d-b3a9-087ab34c419f